bitfinex-derivatives/quotes_BTCF0:USTF0_20250125
["timestamp","ask_amount","ask_price","bid_price","bid_amount"]
[1737814043502,0.89494827,104650.0,104640.0,0.06456044]
[1737814046399,0.89494827,104650.0,104640.0,0.03446044]
[1737814046600,0.92504827,104650.0,104640.0,0.03446044]
[1737814047602,0.81119133,104650.0,104640.0,0.03446044]
[1737814049200,0.81119133,104650.0,104640.0,0.001]
[1737814052597,0.81119133,104650.0,104640.0,0.03445847]
[1737814052792,0.87669133,104650.0,104640.0,0.001]
[1737814055207,1.0479261,104650.0,104640.0,0.001]
[1737814059303,1.0479261,104650.0,104640.0,0.0012635]
[1737814062506,0.87669133,104650.0,104640.0,0.0012635]
[1737814080416,0.78109133,104650.0,104640.0,0.0012635]
[1737814080613,0.78109133,104650.0,104640.0,0.03472536]
[1737814080814,0.78109133,104650.0,104640.0,0.06672536]
[1737814081117,0.80958581,104650.0,104640.0,0.06672536]
[1737814082214,0.75201334,104650.0,104640.0,0.0332635]
[1737814082608,0.75201334,104650.0,104640.0,0.0667244]
[1737814083010,0.80958581,104650.0,104640.0,0.0667244]
[1737814087519,0.80958581,104650.0,104640.0,0.0332635]
[1737814087720,0.78099476,104650.0,104640.0,0.0332635]
[1737814093818,0.72342229,104650.0,104640.0,0.0332635]
[1737814094419,0.72342229,104650.0,104640.0,0.06668371]
[1737814096025,0.69488377,104650.0,104640.0,0.06668371]
[1737814096226,0.69488377,104650.0,104640.0,0.0332635]
[1737814097924,0.69488377,104650.0,104640.0,0.06666288]
[1737814098627,0.69488377,104650.0,104640.0,1.56666288]
[1737814099420,0.75245624,104650.0,104640.0,0.06666288]
[1737814099928,0.69488377,104650.0,104640.0,0.06666288]
[1737814100119,0.75245624,104650.0,104640.0,0.06666288]
[1737814101415,0.69488377,104650.0,104640.0,0.06666288]
[1737814101927,0.78045952,104650.0,104640.0,0.29593167]
[1737814103425,0.83803199,104650.0,104640.0,0.29593167]
[1737814103730,0.78045952,104650.0,104640.0,0.29593167]
[1737814104026,0.83803199,104650.0,104640.0,0.29593167]
[1737814105019,0.83803199,104650.0,104640.0,0.06666288]
[1737814105627,0.83803199,104650.0,104640.0,0.03466288]
[1737814105832,0.90043199,104650.0,104640.0,0.03466288]
[1737814106722,0.93133199,104650.0,104640.0,0.03466288]
[1737814107230,0.93133199,104650.0,104640.0,0.0012635]
[1737814109415,0.87429476,104650.0,104640.0,0.0012635]
[1737814112235,0.152927,104640.0,104630.0,0.29206879]
[1737814112428,0.62887194,104640.0,104630.0,0.32537514]
[1737814113129,0.62887194,104640.0,104630.0,0.09610635]
[1737814113531,0.62887194,104640.0,104630.0,0.09810635]
[1737814115234,0.62887194,104640.0,104630.0,0.0648]
[1737814116636,0.88558642,104640.0,104630.0,0.0648]
[1737814117527,0.94315889,104640.0,104630.0,0.002]
[1737814120035,0.94315889,104640.0,104610.0,0.62942989]
[1737814120036,0.0036,104630.0,104610.0,0.62942989]
[1737814120235,0.89431741,104620.0,104600.0,0.16722107]
[1737814120441,1.09067594,104610.0,104600.0,0.03030216]
[1737814123232,1.09067594,104610.0,104590.0,0.45780156]
[1737814123446,0.47594494,104600.0,104580.0,1.5923]
[1737814123634,0.05757247,104590.0,104580.0,1.5923]
[1737814123835,0.05757247,104590.0,104580.0,1.745315]
[1737814124534,0.05757247,104590.0,104580.0,1.77852386]
[1737814125433,0.05757247,104590.0,104580.0,1.745315]
[1737814125631,0.05757247,104590.0,104580.0,0.2785135]
[1737814126032,0.05757247,104590.0,104580.0,1.7785135]
[1737814126224,0.05757247,104590.0,104580.0,2.1393135]
[1737814126633,0.05757247,104590.0,104580.0,2.106115]
[1737814126840,0.57150185,104600.0,104580.0,2.04389509]
[1737814127041,0.00014338,104600.0,104590.0,0.57137247]
[1737814127441,0.001,104610.0,104600.0,0.152986]
[1737814127641,0.001,104610.0,104600.0,0.21055847]
[1737814127836,0.25671448,104610.0,104600.0,0.57135847]
[1737814128436,0.25671448,104610.0,104600.0,0.6045454]
[1737814128941,0.20671448,104610.0,104600.0,0.6045454]
[1737814129333,0.20671448,104610.0,104600.0,0.54697293]
[1737814129535,0.26428695,104610.0,104600.0,0.54697293]
[1737814129747,0.44745333,104610.0,104600.0,0.57897293]
[1737814130240,0.44745333,104610.0,104600.0,0.42598693]
[1737814131143,0.53522118,104610.0,104600.0,0.42598693]
[1737814131334,0.44745333,104610.0,104600.0,0.42598693]
[1737814132034,0.24073885,104610.0,104600.0,0.42598693]
[1737814132434,0.24073885,104610.0,104600.0,0.39398693]
[1737814132742,0.24073885,104610.0,104590.0,0.15313938]
[1737814132743,0.152986,104600.0,104590.0,0.15313938]
[1737814132935,0.24075385,104600.0,104590.0,0.18622423]
[1737814133434,0.24075385,104600.0,104590.0,0.22806196]
[1737814134337,0.152986,104600.0,104590.0,0.18622423]
[1737814135546,0.60155385,104600.0,104590.0,0.03322823]
[1737814135939,0.60155385,104600.0,104590.0,0.03327657]
[1737814136144,0.60155385,104600.0,104590.0,0.00014338]
[1737814138541,0.63465385,104600.0,104590.0,0.001]
[1737814139135,0.83395718,104600.0,104590.0,0.001]
[1737814142343,0.74872461,104600.0,104590.0,0.001]
[1737814143839,0.66095676,104600.0,104590.0,0.001]
[1737814144050,0.71562461,104600.0,104590.0,0.001]
[1737814145746,0.60155385,104600.0,104590.0,0.001]
[1737814146749,0.60155385,104600.0,104590.0,1.501]
[1737814148649,0.60155385,104600.0,104590.0,1.5645]
[1737814149146,0.80092488,104600.0,104590.0,1.5645]
[1737814150141,0.71315703,104600.0,104590.0,1.7175]
[1737814150344,0.19937103,104600.0,104590.0,2.19920235]
[1737814151152,0.19937103,104600.0,104590.0,2.24104916]
[1737814151451,0.19937103,104600.0,104590.0,2.20791466]
[1737814152053,0.14937103,104600.0,104590.0,0.77719466]
[1737814152554,0.23827327,104610.0,104590.0,2.12419466]
[1737814152851,0.23827327,104610.0,104600.0,0.513786]
[1737814153546,0.23827327,104610.0,104600.0,0.55563281]
[1737814156345,0.152973,104610.0,104600.0,0.55563281]
[1737814157947,0.152973,104610.0,104600.0,0.58753281]
[1737814159249,0.152973,104610.0,104600.0,0.67530066]
[1737814160546,0.23840665,104620.0,104610.0,0.152971]
[1737814160754,0.23840665,104620.0,104610.0,2.075671]
[1737814162650,0.15309938,104620.0,104610.0,2.075671]
[1737814166559,0.15309938,104620.0,104610.0,2.08504209]
[1737814168153,0.10309938,104620.0,104610.0,2.08504209]
[1737814169357,0.44624365,104630.0,104610.0,2.08504209]
[1737814169850,0.152956,104620.0,104610.0,2.08504209]
[1737814173661,0.152956,104620.0,104610.0,2.14261493]
[1737814173852,0.152956,104620.0,104610.0,2.08504209]
[1737814174057,0.153956,104620.0,104610.0,2.14261493]
[1737814174754,0.001,104620.0,104610.0,2.14261493]
[1737814175162,0.001,104620.0,104610.0,0.64261493]
[1737814175668,0.001,104620.0,104610.0,2.14261493]
[1737814177455,0.001,104620.0,104610.0,2.18444262]
[1737814179963,0.08544365,104630.0,104620.0,0.152956]
[1737814180160,0.08544365,104630.0,104620.0,0.30100168]
[1737814180369,0.08544365,104630.0,104620.0,0.66180168]
[1737814180672,0.08544365,104630.0,104620.0,0.70362937]
[1737814181761,0.08644365,104630.0,104620.0,0.70362937]
[1737814184072,0.08644365,104630.0,104620.0,2.20362937]
[1737814184663,0.03644365,104630.0,104620.0,2.23677518]
[1737814184865,0.46638456,104640.0,104630.0,0.152942]
[1737814185063,0.46638456,104640.0,104630.0,0.66796065]
[1737814185573,0.46638456,104640.0,104630.0,0.70978834]
[1737814186264,0.152941,104640.0,104630.0,0.70978834]
[1737814186871,0.102941,104640.0,104630.0,0.70978834]
[1737814188773,0.103941,104640.0,104630.0,0.70978834]
[1737814190276,0.001,104640.0,104630.0,0.71951525]
[1737814195064,0.27457446,104650.0,104640.0,0.152927]
[1737814195265,0.27457446,104650.0,104640.0,0.18607281]
[1737814195769,0.27457446,104650.0,104640.0,0.152927]
[1737814196877,0.27457446,104650.0,104640.0,1.652927]
[1737814197479,0.21700162,104650.0,104640.0,1.74361831]
[1737814199781,0.18570162,104650.0,104640.0,1.74361831]
[1737814200085,0.00157762,104650.0,104640.0,2.15937268]
[1737814200283,0.00157762,104650.0,104640.0,2.19249115]
[1737814200579,0.00257762,104650.0,104640.0,2.19249115]
[1737814200978,0.00114338,104650.0,104640.0,2.19249115]
[1737814201176,0.00114338,104650.0,104640.0,2.23431099]
[1737814201676,0.15405638,104650.0,104640.0,0.73431099]
[1737814201882,0.15405638,104650.0,104640.0,0.69249115]
[1737814202268,0.13305638,104650.0,104640.0,2.19249115]
[1737814203179,0.13305638,104650.0,104640.0,2.13491831]
[1737814203585,0.13305638,104650.0,104640.0,2.10179984]
[1737814204678,0.13305638,104650.0,104640.0,2.15937268]
[1737814205483,0.13305638,104650.0,104640.0,2.10179984]
[1737814205685,0.13305638,104650.0,104640.0,2.13489147]
[1737814206584,0.13305638,104650.0,104640.0,2.19246431]
[1737814206977,0.13305638,104650.0,104640.0,2.13489147]
[1737814207178,0.13305638,104650.0,104640.0,2.17670822]
[1737814210188,0.13305638,104650.0,104640.0,2.13489147]
[1737814210387,0.55142922,104650.0,104640.0,0.03309163]
[1737814210587,0.152927,104640.0,104630.0,0.19475675]
[1737814210782,0.60439984,104640.0,104630.0,0.22788778]
[1737814210985,0.66197268,104640.0,104630.0,1.72788778]
[1737814211190,0.60439984,104640.0,104630.0,1.72788778]
[1737814211696,0.60439984,104640.0,104630.0,1.65294]
[1737814212997,0.71956617,104640.0,104630.0,1.65294]
[1737814213801,0.30119333,104640.0,104630.0,1.65294]
[1737814214700,0.66199333,104640.0,104630.0,1.65294]
[1737814215900,0.26809333,104640.0,104630.0,0.24065484]
[1737814216097,0.26809333,104640.0,104630.0,0.30455484]
[1737814216403,0.26809333,104640.0,104630.0,1.80455484]
[1737814218495,0.26809333,104640.0,104630.0,1.71684]
[1737814219901,0.26809333,104640.0,104630.0,1.7586623]
[1737814222907,0.26809333,104640.0,104630.0,2.1194623]
[1737814223803,0.27764155,104640.0,104630.0,1.7586623]
[1737814225103,0.27764155,104640.0,104630.0,2.1194623]
[1737814231116,0.27764155,104640.0,104630.0,2.07764]
[1737814232414,0.16347522,104640.0,104630.0,2.07764]
[1737814233006,0.16347522,104640.0,104630.0,1.71684]
[1737814233206,0.16347522,104640.0,104630.0,2.07764]
[1737814233401,0.153927,104640.0,104630.0,2.07764]
[1737814233614,0.153927,104640.0,104630.0,2.16535484]
[1737814233814,0.153927,104640.0,104630.0,2.13518501]
[1737814234316,0.001,104640.0,104630.0,2.13518501]
[1737814235706,0.001,104640.0,104630.0,2.17700404]
[1737814252631,0.001,104640.0,104630.0,2.21519322]
[1737814256833,0.001,104640.0,104630.0,2.17700404]
[1737814258634,0.001,104640.0,104630.0,2.21519715]
[1737814258830,0.001,104640.0,104630.0,2.17337812]
[1737814261023,0.001,104640.0,104630.0,2.13518501]
[1737814261226,0.001,104640.0,104630.0,2.17700251]
[1737814261431,0.001,104640.0,104630.0,2.21519735]
[1737814262737,0.32463134,104650.0,104630.0,2.06225735]
[1737814262936,0.26708633,104650.0,104640.0,0.513727]
[1737814263440,0.26708633,104650.0,104640.0,2.013727]
[1737814263930,0.26708633,104650.0,104640.0,2.0555445]
[1737814264139,0.40929512,104650.0,104640.0,2.0555445]
[1737814264533,0.46684013,104650.0,104640.0,2.0555445]
[1737814265942,0.40929512,104650.0,104640.0,2.0555445]
[1737814267444,0.46684013,104650.0,104640.0,2.0555445]
[1737814267647,0.40929512,104650.0,104640.0,2.0555445]
[1737814268245,0.46684013,104650.0,104640.0,2.0555445]
[1737814271544,0.82764013,104650.0,104640.0,1.6947445]
[1737814271738,0.85814013,104650.0,104640.0,1.6947445]
[1737814273138,0.85814013,104650.0,104640.0,1.5418175]
[1737814273340,0.88874013,104650.0,104640.0,1.5418175]
[1737814273849,0.94580857,104650.0,104640.0,1.5]
[1737814274244,0.152927,104640.0,104630.0,0.513732]
[1737814274438,0.24307201,104640.0,104630.0,0.513732]
[1737814274642,0.24307201,104640.0,104630.0,2.013732]
[1737814274842,0.24307201,104640.0,104630.0,2.0555526]
[1737814275854,0.29987164,104640.0,104630.0,2.11309761]
[1737814276038,0.29987164,104640.0,104630.0,2.0555526]
[1737814276238,0.35741665,104640.0,104630.0,2.0555526]
[1737814278858,0.29987164,104640.0,104630.0,2.0555526]
[1737814279157,0.35741665,104640.0,104630.0,2.0555526]
[1737814280449,0.36708236,104640.0,104630.0,2.0555526]
[1737814284860,0.78542737,104640.0,104630.0,1.5418206]
[1737814285162,0.78542737,104640.0,104630.0,0.0418206]
[1737814285362,0.152942,104630.0,104620.0,0.55575157]
[1737814285564,0.21048701,104630.0,104620.0,2.05575157]
[1737814285764,0.21048701,104630.0,104620.0,2.09757708]
[1737814286062,0.21048701,104630.0,104620.0,2.08802289]
[1737814288462,0.21048701,104630.0,104620.0,2.04619738]
[1737814289055,0.40962581,104640.0,104630.0,0.152942]
[1737814289257,0.40962581,104640.0,104630.0,0.63418701]
[1737814289258,0.25669681,104640.0,104630.0,0.63418701]
[1737814289564,0.14235217,104640.0,104630.0,0.63418701]
[1737814290970,0.14235217,104640.0,104630.0,2.13418701]
[1737814293273,0.00014338,104640.0,104630.0,2.13418701]
[1737814294473,0.00014338,104640.0,104630.0,2.14368508]
[1737814298168,0.21061539,104640.0,104630.0,2.08614007]
[1737814298371,0.2681604,104640.0,104630.0,0.58614007]
[1737814298573,0.21061539,104640.0,104630.0,0.58614007]
[1737814298777,0.21061539,104640.0,104630.0,2.08614007]
[1737814300575,0.21061539,104640.0,104630.0,2.076642]
[1737814301175,0.32489066,104640.0,104630.0,2.076642]
[1737814302578,0.26734565,104640.0,104630.0,2.076642]
[1737814302880,0.32489066,104640.0,104630.0,2.076642]
[1737814303079,0.26734565,104640.0,104630.0,2.076642]
[1737814303985,0.32489066,104640.0,104630.0,2.076642]
[1737814304681,0.68569066,104640.0,104630.0,1.715842]
[1737814304982,0.68569066,104640.0,104630.0,1.652942]
[1737814306278,0.69521137,104640.0,104630.0,1.652942]
[1737814308990,0.75275638,104640.0,104630.0,1.5]
[1737814309488,0.69521137,104640.0,104630.0,1.5]
[1737814309891,0.75275638,104640.0,104630.0,1.5]
[1737814310487,0.89496517,104640.0,104630.0,1.5]
[1737814314192,0.7806899,104640.0,104630.0,1.5]
[1737814318399,0.6277629,104640.0,104620.0,0.15309338]
[1737814318699,0.24118701,104630.0,104620.0,0.15309338]
[1737814318893,0.24118701,104630.0,104620.0,1.65309338]
[1737814319096,0.24118701,104630.0,104620.0,1.69491945]
[1737814319985,0.44116369,104630.0,104620.0,1.54196945]
[1737814320384,0.44116369,104630.0,104620.0,1.50014338]
[1737814321290,0.44116369,104630.0,104620.0,1.65309938]
[1737814323286,0.41046369,104630.0,104620.0,1.65309938]
[1737814323490,0.41046369,104630.0,104620.0,1.68309938]
[1737814324002,0.35291868,104630.0,104620.0,1.68309938]
[1737814324499,0.41046369,104630.0,104620.0,1.68309938]
[1737814331908,0.35291868,104630.0,104620.0,1.68309938]
[1737814333405,0.26721439,104630.0,104620.0,1.68309938]
[1737814334601,0.26721439,104630.0,104620.0,1.72492564]
[1737814334907,0.3247594,104630.0,104620.0,1.72492564]
[1737814335103,0.26721439,104630.0,104620.0,1.57196964]
[1737814335401,0.3247594,104630.0,104620.0,1.57196964]
[1737814335710,0.26721439,104630.0,104620.0,1.53014338]
[1737814336304,0.40942318,104630.0,104620.0,1.53014338]
[1737814339305,0.77022318,104630.0,104620.0,1.53014338]
[1737814340101,0.82776819,104630.0,104620.0,1.50014338]
[1737814340408,0.82776819,104630.0,104620.0,0.00014338]
[1737814340409,0.92276819,104630.0,104620.0,0.00014338]
[1737814341701,0.9803132,104630.0,104620.0,0.00014338]
[1737814342212,0.86604081,104630.0,104620.0,0.00014338]
[1737814344915,0.89506679,104630.0,104620.0,0.00014338]
[1737814362429,0.152969,104610.0,104600.0,0.0301]
[1737814362627,0.93211401,104610.0,104600.0,0.0301]
[1737814365443,0.152984,104600.0,104590.0,0.06634338]
[1737814365643,0.57132901,104600.0,104590.0,0.09824338]
[1737814366034,0.62887402,104600.0,104590.0,0.09824338]
[1737814368547,0.82866203,104600.0,104590.0,0.09824338]
[1737814369649,0.83816921,104600.0,104590.0,0.09824338]
[1737814370246,0.83816921,104600.0,104590.0,0.06504338]
[1737814371042,0.83816921,104600.0,104590.0,0.03204338]
[1737814372345,0.75254578,104600.0,104590.0,0.03204338]
[1737814374648,0.8952491,104600.0,104590.0,0.03204338]
[1737814382346,0.83770409,104600.0,104590.0,0.03204338]
[1737814382949,0.83770409,104600.0,104590.0,1.53204338]
[1737814383551,0.8952491,104600.0,104590.0,1.53204338]
[1737814383955,0.83770409,104600.0,104590.0,1.53204338]
[1737814384454,0.69500077,104600.0,104590.0,1.53204338]
[1737814384756,0.75254578,104600.0,104590.0,1.53204338]
[1737814385657,0.75254578,104600.0,104590.0,0.03204338]
[1737814386155,0.75254578,104600.0,104590.0,0.00014338]
[1737814387344,0.95279411,104600.0,104590.0,0.00014338]
[1737814387550,0.79981011,104600.0,104580.0,0.0614]
[1737814387858,0.62888802,104590.0,104580.0,0.0614]
[1737814388756,0.153013,104580.0,104570.0,1.53397759]
[1737814388954,0.26810302,104580.0,104570.0,1.53397759]
[1737814390552,0.35372699,104580.0,104570.0,1.53397759]
[1737814392352,0.71452699,104580.0,104570.0,1.53254338]
[1737814394051,0.82869157,104580.0,104570.0,1.53254338]
[1737814396648,0.83800348,104580.0,104570.0,1.53254338]
[1737814397460,0.89508283,104580.0,104570.0,1.50014338]
[1737814400260,0.89508283,104580.0,104570.0,0.00014338]
[1737814400560,0.63821493,104580.0,104570.0,0.00014338]
[1737814403161,0.78091825,104580.0,104570.0,0.00014338]
[1737814405960,0.83846326,104580.0,104570.0,0.00014338]
[1737814406161,0.153028,104570.0,104560.0,0.0966]
[1737814406464,0.57137301,104570.0,104560.0,0.0966]
[1737814408963,0.65692434,104570.0,104560.0,0.0966]
[1737814410363,0.71446935,104570.0,104560.0,0.0966]
[1737814410866,0.71446935,104570.0,104560.0,0.0658]
[1737814411368,0.74766935,104570.0,104560.0,0.0658]
[1737814411963,0.86173779,104570.0,104560.0,0.0658]
[1737814413969,0.86173779,104570.0,104560.0,0.0036]
[1737814414159,0.89243779,104570.0,104560.0,0.0036]
[1737814415167,0.80688646,104570.0,104560.0,0.0036]
[1737814416670,0.77618646,104570.0,104560.0,0.0036]
[1737814416972,0.71864145,104570.0,104560.0,0.0036]
[1737814418066,0.91888978,104570.0,104560.0,0.0036]
[1737814419472,0.86134477,104570.0,104560.0,0.0036]
[1737814420971,0.82814477,104570.0,104560.0,0.0036]
[1737814421167,0.77059976,104570.0,104560.0,0.30618701]
[1737814421369,0.25677176,104570.0,104560.0,0.66698701]
[1737814421572,0.10707176,104570.0,104560.0,1.02453202]
[1737814421873,0.22892316,104580.0,104570.0,0.153027]
[1737814422073,0.22892316,104580.0,104570.0,0.57137201]
[1737814422270,0.38193616,104580.0,104570.0,0.513827]
[1737814422479,0.38193616,104580.0,104570.0,0.55567127]
[1737814426581,0.21070139,104580.0,104570.0,0.55567127]
[1737814428584,0.15315638,104580.0,104570.0,0.55567127]
[1737814428787,0.15315638,104580.0,104570.0,0.61321628]
[1737814430484,0.00014338,104580.0,104570.0,0.61321628]
[1737814431487,0.00014338,104580.0,104570.0,2.11321628]
[1737814435886,0.00014338,104580.0,104570.0,2.07137201]
[1737814437580,0.05768839,104580.0,104570.0,2.013827]
[1737814438384,0.21070139,104580.0,104570.0,2.013827]
[1737814438690,0.24130139,104580.0,104570.0,2.013827]
[1737814440587,0.18375638,104580.0,104570.0,2.07137201]
[1737814441583,0.18375638,104580.0,104570.0,2.11321416]
[1737814442886,0.18375638,104580.0,104570.0,2.07137201]
[1737814443593,0.215702,104590.0,104570.0,1.91834501]
[1737814443793,0.215702,104590.0,104580.0,0.57135801]
[1737814444297,0.215702,104590.0,104580.0,2.07135801]
[1737814446194,0.11626472,104600.0,104590.0,0.152998]
[1737814446487,0.11626472,104600.0,104590.0,0.57134301]
[1737814447490,0.11626472,104600.0,104590.0,0.61317715]
[1737814448899,0.03064338,104600.0,104590.0,0.61317715]
[1737814450592,0.18362738,104600.0,104590.0,0.61317715]
[1737814450800,0.24117239,104600.0,104590.0,0.61317715]
[1737814450997,0.24117239,104600.0,104590.0,0.55563214]
[1737814451198,0.24117239,104600.0,104590.0,0.61317715]
[1737814451599,0.24117239,104600.0,104590.0,0.19483214]
[1737814451895,0.2987174,104600.0,104590.0,0.40263414]
[1737814452392,0.2987174,104600.0,104590.0,0.04183414]
[1737814452598,0.6595174,104600.0,104590.0,0.04183414]
[1737814452794,0.5065334,104600.0,104580.0,2.013808]
[1737814452998,0.27134301,104590.0,104580.0,1.8608]
[1737814455701,0.301603,104590.0,104580.0,1.8608]
[1737814457002,0.301603,104590.0,104580.0,1.90264143]
[1737814457201,0.38722434,104590.0,104580.0,1.90264143]
[1737814457500,0.3966066,104590.0,104580.0,1.90264143]
[1737814460000,0.7574066,104590.0,104580.0,1.54184143]
[1737814461000,0.7574066,104590.0,104580.0,1.5]
[1737814462701,0.153013,104580.0,104570.0,0.00014338]
[1737814462904,0.272318,104580.0,104570.0,0.00014338]
[1737814463098,0.272318,104580.0,104570.0,1.50014338]
[1737814463600,0.272318,104580.0,104570.0,1.54198855]
[1737814467301,0.720923,104580.0,104570.0,0.04198855]
[1737814467503,0.633118,104580.0,104570.0,0.04198855]
[1737814468101,0.720923,104580.0,104570.0,0.04198855]
[1737814468396,0.720923,104580.0,104560.0,1.5036]
[1737814468601,0.272133,104570.0,104560.0,0.0036]
[1737814469102,0.272133,104570.0,104560.0,1.5036]
[1737814471507,0.35775434,104570.0,104560.0,1.5036]
[1737814471700,0.38825434,104570.0,104560.0,1.5036]
[1737814474306,0.302633,104570.0,104560.0,1.5036]
[1737814475300,0.3120119,104570.0,104560.0,1.5036]
[1737814475809,0.28184711,104570.0,104560.0,1.5036]
[1737814477708,0.27246821,104570.0,104560.0,1.656642]
[1737814477908,0.24196821,104570.0,104560.0,1.656642]
[1737814482417,0.24196821,104570.0,104560.0,1.687742]
[1737814483105,0.24196821,104570.0,104560.0,1.688742]
[1737814484912,0.153028,104570.0,104560.0,2.10718221]
[1737814485110,0.153028,104570.0,104560.0,2.13938221]
[1737814485506,0.66663047,104580.0,104570.0,0.153028]
[1737814485815,0.6950683,104580.0,104570.0,0.153028]
[1737814486908,0.26722055,104580.0,104570.0,0.153028]
[1737814487108,0.26722055,104580.0,104570.0,0.21066821]
[1737814487808,0.11420255,104580.0,104570.0,0.57146821]
[1737814488009,0.11420255,104580.0,104570.0,0.63101398]
[1737814488417,0.11420255,104580.0,104570.0,2.13101398]
[1737814488921,0.08574381,104580.0,104570.0,2.13101398]
[1737814490011,0.29639702,104580.0,104570.0,2.13101398]
[1737814490417,0.29639702,104580.0,104570.0,2.07337377]
[1737814490920,0.29639702,104580.0,104570.0,2.13461398]
[1737814491520,0.29639702,104580.0,104570.0,2.07697377]
[1737814493417,0.21079659,104580.0,104570.0,2.07697377]
[1737814493916,0.15315638,104580.0,104570.0,2.07697377]
[1737814494119,0.15315638,104580.0,104570.0,2.13461398]
[1737814501518,0.00014338,104580.0,104570.0,2.13461398]
[1737814501721,0.15315638,104580.0,104570.0,2.13461398]
[1737814502021,0.21079659,104580.0,104570.0,2.11691398]
[1737814502222,0.24329659,104580.0,104570.0,2.05927377]
[1737814502730,0.24329659,104580.0,104570.0,2.017428]
[1737814503724,0.18565638,104580.0,104570.0,2.017428]
[1737814507726,0.03264338,104580.0,104570.0,2.017428]
[1737814507919,0.00014338,104580.0,104570.0,0.60523903]
[1737814508524,0.00014338,104580.0,104570.0,2.10523903]
[1737814509125,0.00014338,104580.0,104570.0,2.1470848]
[1737814512331,0.0328,104590.0,104580.0,0.153013]
[1737814512525,0.1996596,104600.0,104590.0,0.152998]
[1737814512720,0.1996596,104600.0,104590.0,0.63360903]
[1737814513634,0.1996596,104600.0,104590.0,0.6754548]
[1737814514026,0.1996596,104600.0,104590.0,2.13360903]
[1737814517837,0.30121681,104610.0,104600.0,0.152984]
[1737814518032,0.30121681,104610.0,104600.0,0.156584]
[1737814518830,0.30121681,104610.0,104600.0,0.24439503]
[1737814519034,0.30121681,104610.0,104600.0,0.517384]
[1737814522027,0.21561638,104610.0,104600.0,0.517384]
[1737814524237,0.21561638,104610.0,104600.0,0.60519503]
[1737814531840,0.03134338,104610.0,104600.0,0.60519503]
[1737814532041,0.03134338,104610.0,104600.0,0.63589503]
[1737814532442,0.03134338,104610.0,104600.0,2.13589503]
[1737814533752,0.03134338,104610.0,104600.0,2.1632349]
[1737814534550,0.03134338,104610.0,104600.0,2.19632382]
[1737814540446,0.03134338,104610.0,104600.0,2.13874837]
[1737814540752,0.03134338,104610.0,104600.0,2.19632382]
[1737814541649,0.03134338,104610.0,104600.0,2.13874837]
[1737814542453,0.11694381,104610.0,104600.0,2.13874837]
[1737814542648,0.11694381,104610.0,104600.0,2.19632382]
[1737814543351,0.11694381,104610.0,104600.0,2.13874837]
[1737814543656,0.11694381,104610.0,104600.0,2.19632382]
[1737814543856,0.26991281,104610.0,104600.0,2.19632382]
[1737814544056,0.26991281,104610.0,104600.0,2.13874837]
[1737814544357,0.26991281,104610.0,104600.0,2.19632382]
[1737814544561,0.26991281,104610.0,104600.0,2.13874837]
[1737814552661,0.38397198,104610.0,104600.0,2.13874837]
[1737814554156,0.38397198,104610.0,104600.0,2.08117292]
[1737814554561,0.38397198,104610.0,104600.0,1.68967292]
[1737814554761,0.41617198,104610.0,104600.0,1.68967292]
[1737814555353,0.41617198,104610.0,104600.0,2.05047292]
[1737814555553,0.41617198,104610.0,104600.0,2.017384]
[1737814561063,0.47374743,104610.0,104600.0,2.017384]
[1737814561261,0.83454743,104610.0,104600.0,1.5036]
[1737814565065,0.47374743,104610.0,104600.0,1.5036]
[1737814565264,0.41617198,104610.0,104600.0,1.56117545]
[1737814565470,0.47325962,104610.0,104600.0,1.56117545]
[1737814565870,0.47325962,104610.0,104600.0,1.92197545]
[1737814566763,0.47325962,104610.0,104600.0,2.017384]
[1737814567264,0.53083507,104610.0,104600.0,2.017384]
[1737814568562,0.388147,104610.0,104600.0,2.017384]
[1737814572175,0.47385098,104610.0,104600.0,2.017384]
[1737814573986,0.47385098,104610.0,104600.0,1.8644]
[1737814575681,0.83465098,104610.0,104600.0,1.5036]
[1737814575883,0.83465098,104610.0,104600.0,0.0036]
[1737814576386,0.83465098,104610.0,104600.0,1.5036]
[1737814577377,0.89222643,104610.0,104600.0,1.5036]
[1737814578286,0.83515135,104610.0,104600.0,1.5036]
[1737814581489,0.7775759,104610.0,104600.0,1.5036]
[1737814584791,0.83515135,104610.0,104600.0,1.5036]
[1737814585687,0.7775759,104610.0,104600.0,1.5036]
[1737814591591,0.94881067,104610.0,104600.0,1.5036]
[1737814594794,1.00638612,104610.0,104600.0,1.5036]
[1737814594995,0.94881067,104610.0,104600.0,1.5036]
[1737814605297,0.7775759,104610.0,104600.0,1.5036]
[1737814608293,0.7453759,104610.0,104600.0,1.5036]
[1737814608498,0.7453759,104610.0,104600.0,1.5355]
[1737814608998,0.7453759,104610.0,104600.0,0.0355]
[1737814610301,0.65660045,104610.0,104600.0,0.0355]
[1737814610703,0.7141759,104610.0,104600.0,0.0355]
[1737814611299,0.3533759,104610.0,104600.0,0.188484]
[1737814612998,0.52461067,104610.0,104600.0,0.188484]
[1737814614996,0.52461067,104610.0,104600.0,1.688484]
[1737814615401,0.46703522,104610.0,104600.0,1.688484]
[1737814615603,0.46703522,104610.0,104600.0,1.74605945]
[1737814615900,0.46703522,104610.0,104600.0,1.688484]
[1737814616103,0.26741548,104610.0,104600.0,1.688484]
[1737814616298,0.32499093,104610.0,104600.0,1.688484]
[1737814618808,0.32499093,104610.0,104600.0,1.5355]
[1737814622007,0.467679,104610.0,104600.0,1.5355]
[1737814623508,0.467679,104610.0,104600.0,1.5036]
[1737814624007,0.860279,104610.0,104600.0,1.5036]
[1737814624309,0.499479,104610.0,104600.0,1.5036]
[1737814627109,0.860279,104610.0,104600.0,1.5036]
[1737814629910,0.7459759,104610.0,104600.0,1.5036]
[1737814630511,0.80355135,104610.0,104600.0,0.0036]
[1737814630912,0.152999,104590.0,104580.0,0.36094338]
[1737814631118,0.21057445,104590.0,104580.0,1.86094338]
[1737814632419,0.21057445,104590.0,104580.0,1.90278435]
[1737814633111,0.41045684,104590.0,104580.0,1.90278435]
[1737814633314,0.44165684,104590.0,104580.0,1.90278435]
[1737814633915,0.44165684,104590.0,104580.0,1.54198435]
[1737814635124,0.44165684,104590.0,104580.0,1.50014338]
[1737814635820,0.86003229,104590.0,104580.0,1.50014338]
[1737814636623,0.77436841,104590.0,104580.0,1.50014338]
[1737814638826,0.71679296,104590.0,104580.0,1.50014338]
[1737814639131,0.77436841,104590.0,104580.0,1.50014338]
[1737814639328,0.92645256,104590.0,104580.0,1.50014338]
[1737814639925,0.86887711,104590.0,104580.0,1.50014338]
[1737814641732,0.72618904,104590.0,104580.0,1.50014338]
[1737814648836,0.81167283,104590.0,104580.0,1.50014338]
[1737814653444,0.45087283,104590.0,104580.0,1.50014338]
[1737814653741,0.41967283,104590.0,104580.0,1.50014338]